[Event "Titled Tuesday Blitz November 22 Early 2022"]
[White "Izuzquiza Gonzalez, Javier"]
[Black "Fabris, Alberto"]
[WhiteFideId "3101029"]
[BlackFideId "801348"]
[WhiteElo "2034"]
[BlackElo "2165"]
[Result "1-0"]
[Round "07"]
[TimeControl "180+1"]
[Date "2022.11.23"]
[WhiteClock "0:00:04"]
[BlackClock "0:00:11"]

1. d4 {[%clk 0:03:00]}  Nf6 {[%clk 0:02:59]} 2. c4 {[%clk 0:03:00]}  e6 {[%clk 0:02:59]} 3. Nf3 {[%clk 0:03:00]}  b6 {[%clk 0:02:58]} 4. g3 {[%clk 0:03:01]}  Bb7 {[%clk 0:02:59]} 5. Bg2 {[%clk 0:03:00]}  Be7 {[%clk 0:02:59]} 6. O-O {[%clk 0:03:01]}  O-O {[%clk 0:02:59]} 7. Qc2 {[%clk 0:03:01]}  d5 {[%clk 0:02:57]} 8. b3 {[%clk 0:02:57]}  Ne4 {[%clk 0:02:55]} 9. Nbd2 {[%clk 0:02:57]}  f5 {[%clk 0:02:45]} 10. Ne5 {[%clk 0:02:56]}  Nd7 {[%clk 0:02:44]} 11. Ndf3 {[%clk 0:02:55]}  Bf6 {[%clk 0:02:40]} 12. Bf4 {[%clk 0:02:55]}  Nxe5 {[%clk 0:02:39]} 13. Bxe5 {[%clk 0:02:53]}  c6 {[%clk 0:02:35]} 14. Rad1 {[%clk 0:02:44]}  Qe7 {[%clk 0:02:33]} 15. Bxf6 {[%clk 0:02:34]}  gxf6 {[%clk 0:02:32]} 16. Nd2 {[%clk 0:02:33]}  Kh8 {[%clk 0:02:30]} 17. f3 {[%clk 0:02:30]}  Nd6 {[%clk 0:02:22]} 18. e4 {[%clk 0:02:27]}  fxe4 {[%clk 0:02:21]} 19. fxe4 {[%clk 0:02:27]}  Rac8 {[%clk 0:02:13]} 20. exd5 {[%clk 0:02:25]}  cxd5 {[%clk 0:02:12]} 21. Rde1 {[%clk 0:02:20]}  Qd7 {[%clk 0:02:10]} 22. Bh3 {[%clk 0:02:17]}  f5 {[%clk 0:02:08]} 23. Qd3 {[%clk 0:02:13]}  Ne4 {[%clk 0:02:06]} 24. Nf3 {[%clk 0:02:06]}  dxc4 {[%clk 0:01:58]} 25. bxc4 {[%clk 0:02:06]}  Qa4 {[%clk 0:01:58]} 26. Ne5 {[%clk 0:01:59]}  Ba6 {[%clk 0:01:58]} 27. d5 {[%clk 0:01:32]}  Bxc4 {[%clk 0:01:43]} 28. Qd4 {[%clk 0:01:30]}  Nf6 {[%clk 0:01:36]} 29. dxe6 {[%clk 0:01:25]}  b5 {[%clk 0:01:24]} 30. Nf7+ {[%clk 0:01:22]}  Kg7 {[%clk 0:01:24]} 31. Rxf5 {[%clk 0:01:15]}  Rxf7 {[%clk 0:01:06]} 32. exf7 {[%clk 0:01:14]}  Rc6 {[%clk 0:01:02]} 33. Re8 {[%clk 0:01:07]}  Bxf7 {[%clk 0:00:55]} 34. Qxa4 {[%clk 0:00:23]}  bxa4 {[%clk 0:00:54]} 35. Re7 {[%clk 0:00:24]}  Kg6 {[%clk 0:00:43]} 36. Ra5 {[%clk 0:00:20]}  Rc1+ {[%clk 0:00:43]} 37. Kg2 {[%clk 0:00:18]}  Rc2+ {[%clk 0:00:43]} 38. Kf1 {[%clk 0:00:18]}  Rxa2 {[%clk 0:00:42]} 39. Raxa7 {[%clk 0:00:18]}  Bc4+ {[%clk 0:00:40]} 40. Ke1 {[%clk 0:00:18]}  Rxh2 {[%clk 0:00:37]} 41. Rg7+ {[%clk 0:00:16]}  Kh6 {[%clk 0:00:36]} 42. Bf5 {[%clk 0:00:16]}  Ra2 {[%clk 0:00:30]} 43. Rgc7 {[%clk 0:00:10]}  Bb3 {[%clk 0:00:27]} 44. Ra6 {[%clk 0:00:09]}  Kg5 {[%clk 0:00:26]} 45. g4 {[%clk 0:00:09]}  Nxg4 {[%clk 0:00:25]} 46. Bxg4 {[%clk 0:00:07]}  Kxg4 {[%clk 0:00:26]} 47. Rf6 {[%clk 0:00:07]}  Kg5 {[%clk 0:00:18]} 48. Rf8 {[%clk 0:00:07]}  Rc2 {[%clk 0:00:15]} 49. Rxh7 {[%clk 0:00:06]}  a3 {[%clk 0:00:13]} 50. Rg7+ {[%clk 0:00:06]}  Kh6 {[%clk 0:00:12]} 51. Rg3 {[%clk 0:00:04]}  a2 {[%clk 0:00:11]} 52. Rh8# {[%clk 0:00:04]} 1-0


[Site "https://www.chess.com"]

[Event "Titled Tuesday Blitz November 22 Early 2022"]
[White "Jeet, Jain"]
[Black "Rakhmanov, Aleksandr"]
[WhiteFideId "5073022"]
[BlackFideId "4173708"]
[WhiteElo "2067"]
[BlackElo "2530"]
[Result "0-1"]
[Round "07"]
[TimeControl "180+1"]
[Date "2022.11.23"]
[WhiteClock "0:00:15"]
[BlackClock "0:00:08"]

1. Nf3 {[%clk 0:03:00]}  d5 {[%clk 0:02:58]} 2. b3 {[%clk 0:03:00]}  c6 {[%clk 0:02:58]} 3. Bb2 {[%clk 0:03:01]}  Bg4 {[%clk 0:02:57]} 4. e3 {[%clk 0:02:58]}  Nd7 {[%clk 0:02:57]} 5. d4 {[%clk 0:02:58]}  e6 {[%clk 0:02:55]} 6. Be2 {[%clk 0:02:58]}  Bd6 {[%clk 0:02:56]} 7. h3 {[%clk 0:02:58]}  Bxf3 {[%clk 0:02:53]} 8. Bxf3 {[%clk 0:02:59]}  f5 {[%clk 0:02:53]} 9. Nd2 {[%clk 0:03:00]}  Ngf6 {[%clk 0:02:53]} 10. O-O {[%clk 0:02:56]}  O-O {[%clk 0:02:50]} 11. c4 {[%clk 0:02:54]}  Ne4 {[%clk 0:02:50]} 12. a3 {[%clk 0:02:50]}  Qh4 {[%clk 0:02:43]} 13. a4 {[%clk 0:02:40]}  Rf7 {[%clk 0:02:17]} 14. Ba3 {[%clk 0:02:32]}  Bc7 {[%clk 0:02:15]} 15. Bxe4 {[%clk 0:02:24]}  fxe4 {[%clk 0:01:50]} 16. f4 {[%clk 0:02:17]}  g5 {[%clk 0:01:24]} 17. fxg5 {[%clk 0:01:52]}  Rg7 {[%clk 0:01:17]} 18. Qg4 {[%clk 0:01:04]}  Qxg4 {[%clk 0:01:15]} 19. hxg4 {[%clk 0:01:05]}  Rxg5 {[%clk 0:01:14]} 20. Kf2 {[%clk 0:00:54]}  Rxg4 {[%clk 0:01:07]} 21. Rh1 {[%clk 0:00:55]}  Kg7 {[%clk 0:00:56]} 22. Rh3 {[%clk 0:00:49]}  Nf6 {[%clk 0:00:26]} 23. Rah1 {[%clk 0:00:43]}  Rg8 {[%clk 0:00:27]} 24. Nf1 {[%clk 0:00:35]}  Kf7 {[%clk 0:00:18]} 25. g3 {[%clk 0:00:35]}  h5 {[%clk 0:00:18]} 26. Bb4 {[%clk 0:00:27]}  R4g5 {[%clk 0:00:17]} 27. Ba3 {[%clk 0:00:16]}  Rf5+ {[%clk 0:00:17]} 28. Kg2 {[%clk 0:00:15]}  Rf3 {[%clk 0:00:16]} 29. Bc1 {[%clk 0:00:14]}  e5 {[%clk 0:00:14]} 30. Bb2 {[%clk 0:00:14]}  Ke6 {[%clk 0:00:13]} 31. dxe5 {[%clk 0:00:14]}  Bxe5 {[%clk 0:00:14]} 32. Bxe5 {[%clk 0:00:15]}  Kxe5 {[%clk 0:00:15]} 33. Rxh5+ {[%clk 0:00:15]}  Nxh5 {[%clk 0:00:14]} 34. Rxh5+ {[%clk 0:00:16]}  Ke6 {[%clk 0:00:12]} 35. Rh6+ {[%clk 0:00:14]}  Rf6 {[%clk 0:00:12]} 36. Rh4 {[%clk 0:00:13]}  Rgf8 {[%clk 0:00:11]} 37. Rf4 {[%clk 0:00:13]}  Rxf4 {[%clk 0:00:09]} 38. gxf4 {[%clk 0:00:12]}  dxc4 {[%clk 0:00:09]} 39. bxc4 {[%clk 0:00:12]}  b5 {[%clk 0:00:05]} 40. axb5 {[%clk 0:00:12]}  cxb5 {[%clk 0:00:06]} 41. cxb5 {[%clk 0:00:13]}  Rb8 {[%clk 0:00:07]} 42. Nd2 {[%clk 0:00:13]}  Rxb5 {[%clk 0:00:06]} 43. Nxe4 {[%clk 0:00:13]}  a5 {[%clk 0:00:07]} 44. Kf3 {[%clk 0:00:13]}  a4 {[%clk 0:00:07]} 45. Nc3 {[%clk 0:00:13]}  Rb4 {[%clk 0:00:06]} 46. Kg4 {[%clk 0:00:14]}  a3 {[%clk 0:00:06]} 47. e4 {[%clk 0:00:14]}  Rb3 {[%clk 0:00:06]} 48. Nd5 {[%clk 0:00:11]}  a2 {[%clk 0:00:05]} 49. f5+ {[%clk 0:00:12]}  Kd6 {[%clk 0:00:06]} 50. f6 {[%clk 0:00:11]}  a1=Q {[%clk 0:00:06]} 51. f7 {[%clk 0:00:12]}  Qg7+ {[%clk 0:00:07]} 52. Kf5 {[%clk 0:00:13]}  Qxf7+ {[%clk 0:00:07]} 53. Nf6 {[%clk 0:00:14]}  Qe6+ {[%clk 0:00:07]} 54. Kg5 {[%clk 0:00:14]}  Rg3+ {[%clk 0:00:07]} 55. Kh4 {[%clk 0:00:14]}  Qxf6+ {[%clk 0:00:07]} 56. Kxg3 {[%clk 0:00:15]}  Ke5 {[%clk 0:00:08]} 0-1


[Site "https://www.chess.com"]

[Event "Titled Tuesday Blitz November 22 Early 2022"]
[White "Johnson, Ben"]
[Black "Ciuffoletti, Paolo"]
[WhiteFideId "2010917"]
[BlackFideId "807630"]
[WhiteElo "2150"]
[BlackElo "2143"]
[Result "0-1"]
[Round "07"]
[TimeControl "180+1"]
[Date "2022.11.23"]
[WhiteClock "0:00:16"]
[BlackClock "0:00:47"]

1. Nf3 {[%clk 0:03:00]}  d5 {[%clk 0:02:58]} 2. e3 {[%clk 0:03:01]}  Nf6 {[%clk 0:02:53]} 3. c4 {[%clk 0:03:01]}  c6 {[%clk 0:02:51]} 4. Nc3 {[%clk 0:02:58]}  g6 {[%clk 0:02:49]} 5. cxd5 {[%clk 0:02:42]}  cxd5 {[%clk 0:02:48]} 6. d4 {[%clk 0:02:33]}  Bg7 {[%clk 0:02:46]} 7. Bd3 {[%clk 0:02:26]}  Nc6 {[%clk 0:02:44]} 8. O-O {[%clk 0:02:25]}  O-O {[%clk 0:02:43]} 9. b3 {[%clk 0:02:23]}  Bg4 {[%clk 0:02:41]} 10. h3 {[%clk 0:02:19]}  Bxf3 {[%clk 0:02:40]} 11. Qxf3 {[%clk 0:02:20]}  e5 {[%clk 0:02:39]} 12. dxe5 {[%clk 0:02:07]}  Nxe5 {[%clk 0:02:37]} 13. Qe2 {[%clk 0:02:08]}  d4 {[%clk 0:02:18]} 14. exd4 {[%clk 0:00:36]}  Qxd4 {[%clk 0:02:15]} 15. Bb1 {[%clk 0:00:33]}  Qxc3 {[%clk 0:01:07]} 16. Bb2 {[%clk 0:00:32]}  Qc6 {[%clk 0:00:59]} 17. Qxe5 {[%clk 0:00:27]}  Nh5 {[%clk 0:00:59]} 18. Qe2 {[%clk 0:00:27]}  Nf4 {[%clk 0:00:54]} 19. Qg4 {[%clk 0:00:17]}  Bxb2 {[%clk 0:00:49]} 20. Qxf4 {[%clk 0:00:17]}  Bxa1 {[%clk 0:00:49]} 21. Be4 {[%clk 0:00:16]}  Qf6 {[%clk 0:00:47]} 0-1


[Site "https://www.chess.com"]

[Event "Titled Tuesday Blitz November 22 Early 2022"]
[White "Jones, Gawain C B"]
[Black "Boruchovsky, Avital"]
[WhiteFideId "409561"]
[BlackFideId "2800055"]
[WhiteElo "2657"]
[BlackElo "2458"]
[Result "1/2-1/2"]
[Round "07"]
[TimeControl "180+1"]
[Date "2022.11.22"]
[WhiteClock "0:00:06"]
[BlackClock "0:00:08"]

1. Nf3 {[%clk 0:03:00]}  d5 {[%clk 0:02:58]} 2. g3 {[%clk 0:03:01]}  g6 {[%clk 0:02:53]} 3. Bg2 {[%clk 0:03:01]}  Bg7 {[%clk 0:02:54]} 4. O-O {[%clk 0:03:01]}  e5 {[%clk 0:02:53]} 5. d3 {[%clk 0:03:01]}  Ne7 {[%clk 0:02:52]} 6. Nc3 {[%clk 0:03:01]}  O-O {[%clk 0:02:53]} 7. e4 {[%clk 0:03:00]}  c6 {[%clk 0:02:47]} 8. Qe2 {[%clk 0:02:51]}  h6 {[%clk 0:02:37]} 9. exd5 {[%clk 0:02:47]}  Nxd5 {[%clk 0:02:37]} 10. Bd2 {[%clk 0:02:40]}  Re8 {[%clk 0:02:36]} 11. Rfe1 {[%clk 0:02:32]}  Bf5 {[%clk 0:02:14]} 12. Ne4 {[%clk 0:02:23]}  Qc7 {[%clk 0:02:07]} 13. c4 {[%clk 0:02:20]}  Bxe4 {[%clk 0:02:04]} 14. dxe4 {[%clk 0:01:58]}  Nf6 {[%clk 0:02:01]} 15. c5 {[%clk 0:01:56]}  a5 {[%clk 0:02:01]} 16. a3 {[%clk 0:01:50]}  a4 {[%clk 0:02:01]} 17. Qc4 {[%clk 0:01:49]}  Nbd7 {[%clk 0:01:49]} 18. Rad1 {[%clk 0:01:39]}  Nf8 {[%clk 0:01:06]} 19. Bc3 {[%clk 0:01:37]}  N6d7 {[%clk 0:01:06]} 20. Bh3 {[%clk 0:01:32]}  Ne6 {[%clk 0:01:04]} 21. Bb4 {[%clk 0:01:25]}  Bf8 {[%clk 0:01:01]} 22. Rxd7 {[%clk 0:01:02]}  Qxd7 {[%clk 0:00:58]} 23. Nxe5 {[%clk 0:01:03]}  Qd4 {[%clk 0:00:52]} 24. Bxe6 {[%clk 0:00:37]}  Qxc4 {[%clk 0:00:52]} 25. Nxc4 {[%clk 0:00:36]}  Rxe6 {[%clk 0:00:48]} 26. e5 {[%clk 0:00:35]}  Rd8 {[%clk 0:00:38]} 27. Nd6 {[%clk 0:00:32]}  b6 {[%clk 0:00:20]} 28. cxb6 {[%clk 0:00:18]}  c5 {[%clk 0:00:20]} 29. Nb7 {[%clk 0:00:13]}  Rd5 {[%clk 0:00:17]} 30. Ba5 {[%clk 0:00:10]}  Rd7 {[%clk 0:00:11]} 31. Nd6 {[%clk 0:00:09]}  Bxd6 {[%clk 0:00:10]} 32. exd6 {[%clk 0:00:09]}  Rxe1+ {[%clk 0:00:11]} 33. Bxe1 {[%clk 0:00:09]}  Rxd6 {[%clk 0:00:11]} 34. Ba5 {[%clk 0:00:09]}  Rd7 {[%clk 0:00:11]} 35. Kf1 {[%clk 0:00:06]}  f5 {[%clk 0:00:12]} 36. Ke2 {[%clk 0:00:06]}  Kf7 {[%clk 0:00:12]} 37. Bc3 {[%clk 0:00:04]}  Ke6 {[%clk 0:00:07]} 38. Bd2 {[%clk 0:00:04]}  Rb7 {[%clk 0:00:06]} 39. Bxh6 {[%clk 0:00:02]}  Rxb6 {[%clk 0:00:06]} 40. Bc1 {[%clk 0:00:03]}  Rb3 {[%clk 0:00:06]} 41. Kd1 {[%clk 0:00:02]}  Kd5 {[%clk 0:00:06]} 42. Kc2 {[%clk 0:00:03]}  c4 {[%clk 0:00:07]} 43. Be3 {[%clk 0:00:03]}  Ke4 {[%clk 0:00:07]} 44. Bc5 {[%clk 0:00:03]}  Rd3 {[%clk 0:00:05]} 45. h4 {[%clk 0:00:03]}  f4 {[%clk 0:00:04]} 46. gxf4 {[%clk 0:00:02]}  Kxf4 {[%clk 0:00:05]} 47. Be3+ {[%clk 0:00:02]}  Kg4 {[%clk 0:00:05]} 48. Bg5 {[%clk 0:00:03]}  Rf3 {[%clk 0:00:05]} 49. Kd2 {[%clk 0:00:03]}  Rxf2+ {[%clk 0:00:05]} 50. Kc3 {[%clk 0:00:03]}  Rf5 {[%clk 0:00:05]} 51. Kxc4 {[%clk 0:00:03]}  Rxg5 {[%clk 0:00:06]} 52. hxg5 {[%clk 0:00:04]}  Kxg5 {[%clk 0:00:06]} 53. b4 {[%clk 0:00:04]}  axb3 {[%clk 0:00:06]} 54. Kxb3 {[%clk 0:00:04]}  Kf4 {[%clk 0:00:04]} 55. a4 {[%clk 0:00:02]}  g5 {[%clk 0:00:03]} 56. a5 {[%clk 0:00:02]}  g4 {[%clk 0:00:04]} 57. a6 {[%clk 0:00:03]}  g3 {[%clk 0:00:05]} 58. a7 {[%clk 0:00:03]}  g2 {[%clk 0:00:06]} 59. a8=Q {[%clk 0:00:04]}  g1=Q {[%clk 0:00:06]} 60. Qb8+ {[%clk 0:00:04]}  Kf5 {[%clk 0:00:07]} 61. Qc8+ {[%clk 0:00:04]}  Kf6 {[%clk 0:00:07]} 62. Qf8+ {[%clk 0:00:04]}  Ke6 {[%clk 0:00:07]} 63. Qe8+ {[%clk 0:00:04]}  Kf6 {[%clk 0:00:07]} 64. Qf8+ {[%clk 0:00:05]}  Ke6 {[%clk 0:00:08]} 65. Qe8+ {[%clk 0:00:05]}  Kf6 {[%clk 0:00:08]} 66. Qf8+ {[%clk 0:00:06]} 1/2-1/2


[Site "https://www.chess.com"]

[Event "Titled Tuesday Blitz November 22 Early 2022"]
[White "Keymer, Vincent"]
[Black "Bazeev, German"]
[WhiteFideId "12940690"]
[BlackFideId "24119350"]
[WhiteElo "2600"]
[BlackElo "2493"]
[Result "1-0"]
[Round "07"]
[TimeControl "180+1"]
[Date "2022.11.22"]
[WhiteClock "0:00:11"]
[BlackClock "0:00:04"]

1. Nf3 {[%clk 0:03:00]}  Nf6 {[%clk 0:02:43]} 2. c4 {[%clk 0:03:00]}  d6 {[%clk 0:02:41]} 3. d4 {[%clk 0:03:00]}  Bg4 {[%clk 0:02:42]} 4. Nc3 {[%clk 0:02:58]}  Nbd7 {[%clk 0:02:39]} 5. g3 {[%clk 0:02:57]}  Bxf3 {[%clk 0:02:39]} 6. exf3 {[%clk 0:02:58]}  e6 {[%clk 0:02:39]} 7. h4 {[%clk 0:02:53]}  c6 {[%clk 0:02:37]} 8. d5 {[%clk 0:02:44]}  cxd5 {[%clk 0:02:36]} 9. cxd5 {[%clk 0:02:45]}  e5 {[%clk 0:02:37]} 10. Bh3 {[%clk 0:02:32]}  Be7 {[%clk 0:02:35]} 11. O-O {[%clk 0:02:32]}  O-O {[%clk 0:02:35]} 12. Re1 {[%clk 0:02:33]}  a6 {[%clk 0:02:34]} 13. Be3 {[%clk 0:02:27]}  Rc8 {[%clk 0:02:29]} 14. Rc1 {[%clk 0:02:26]}  Rc7 {[%clk 0:02:05]} 15. Qd2 {[%clk 0:02:18]}  Qb8 {[%clk 0:01:57]} 16. Rc2 {[%clk 0:02:13]}  b5 {[%clk 0:01:52]} 17. Rec1 {[%clk 0:02:10]}  Nb6 {[%clk 0:01:48]} 18. b3 {[%clk 0:01:47]}  b4 {[%clk 0:01:38]} 19. Ne4 {[%clk 0:01:40]}  Rxc2 {[%clk 0:01:33]} 20. Nxf6+ {[%clk 0:01:39]}  Bxf6 {[%clk 0:01:27]} 21. Rxc2 {[%clk 0:01:40]}  a5 {[%clk 0:00:56]} 22. Rc6 {[%clk 0:01:37]}  Na8 {[%clk 0:00:51]} 23. Qc2 {[%clk 0:01:31]}  Bd8 {[%clk 0:00:49]} 24. Rc8 {[%clk 0:01:23]}  Qb7 {[%clk 0:00:48]} 25. Qc6 {[%clk 0:01:21]}  Qxc6 {[%clk 0:00:47]} 26. Rxc6 {[%clk 0:01:13]}  Nc7 {[%clk 0:00:45]} 27. Rxd6 {[%clk 0:01:11]}  Nb5 {[%clk 0:00:45]} 28. Rc6 {[%clk 0:00:55]}  Nd4 {[%clk 0:00:42]} 29. Rc8 {[%clk 0:00:49]}  Bf6 {[%clk 0:00:36]} 30. Kg2 {[%clk 0:00:45]}  Rxc8 {[%clk 0:00:34]} 31. Bxc8 {[%clk 0:00:46]}  h5 {[%clk 0:00:19]} 32. f4 {[%clk 0:00:40]}  Kf8 {[%clk 0:00:19]} 33. fxe5 {[%clk 0:00:30]}  Bxe5 {[%clk 0:00:20]} 34. d6 {[%clk 0:00:19]}  Ke8 {[%clk 0:00:18]} 35. Bh3 {[%clk 0:00:16]}  g6 {[%clk 0:00:15]} 36. Bc8 {[%clk 0:00:15]}  Kd8 {[%clk 0:00:15]} 37. Ba6 {[%clk 0:00:15]}  Kd7 {[%clk 0:00:13]} 38. Bc4 {[%clk 0:00:15]}  Ne6 {[%clk 0:00:07]} 39. Bb6 {[%clk 0:00:14]}  Kxd6 {[%clk 0:00:06]} 40. Bxa5 {[%clk 0:00:14]}  Kc5 {[%clk 0:00:06]} 41. Bxe6 {[%clk 0:00:11]}  fxe6 {[%clk 0:00:07]} 42. Kf3 {[%clk 0:00:12]}  Bd4 {[%clk 0:00:06]} 43. Ke2 {[%clk 0:00:11]}  e5 {[%clk 0:00:04]} 44. f3 {[%clk 0:00:11]}  Kb5 {[%clk 0:00:03]} 45. Bd8 {[%clk 0:00:11]}  Kc5 {[%clk 0:00:02]} 46. Bf6 {[%clk 0:00:10]}  Kd5 {[%clk 0:00:02]} 47. Be7 {[%clk 0:00:10]}  Bc3 {[%clk 0:00:02]} 48. Kd3 {[%clk 0:00:09]}  Be1 {[%clk 0:00:02]} 49. g4 {[%clk 0:00:09]}  hxg4 {[%clk 0:00:02]} 50. fxg4 {[%clk 0:00:10]}  e4+ {[%clk 0:00:03]} 51. Ke2 {[%clk 0:00:10]}  Bc3 {[%clk 0:00:03]} 52. h5 {[%clk 0:00:11]}  gxh5 {[%clk 0:00:04]} 53. gxh5 {[%clk 0:00:12]}  Ke6 {[%clk 0:00:05]} 54. Bg5 {[%clk 0:00:11]}  Kf5 {[%clk 0:00:05]} 55. Bd2 {[%clk 0:00:10]}  Bxd2 {[%clk 0:00:04]} 56. Kxd2 {[%clk 0:00:10]}  Kg5 {[%clk 0:00:04]} 57. Ke3 {[%clk 0:00:11]} 1-0


[Site "https://www.chess.com"]

[Event "Titled Tuesday Blitz November 22 Early 2022"]
[White "Kim, Sergey"]
[Black "Boros, Denes"]
[WhiteFideId "13700570"]
[BlackFideId "722340"]
[WhiteElo "2623"]
[BlackElo "2464"]
[Result "0-1"]
[Round "07"]
[TimeControl "180+1"]
[Date "2022.11.23"]
[WhiteClock "0:00:15"]
[BlackClock "0:00:06"]

1. d4 {[%clk 0:03:00]}  d6 {[%clk 0:03:00]} 2. c4 {[%clk 0:03:00]}  Nc6 {[%clk 0:03:00]} 3. Nc3 {[%clk 0:02:58]}  e5 {[%clk 0:02:59]} 4. d5 {[%clk 0:02:58]}  Nce7 {[%clk 0:02:58]} 5. e4 {[%clk 0:02:58]}  Nf6 {[%clk 0:02:56]} 6. Nge2 {[%clk 0:02:57]}  h5 {[%clk 0:02:55]} 7. h4 {[%clk 0:02:56]}  g6 {[%clk 0:02:55]} 8. g3 {[%clk 0:02:55]}  a5 {[%clk 0:02:51]} 9. Bg2 {[%clk 0:02:49]}  Bg4 {[%clk 0:02:48]} 10. f3 {[%clk 0:02:46]}  Bd7 {[%clk 0:02:48]} 11. Bg5 {[%clk 0:02:46]}  Nh7 {[%clk 0:02:48]} 12. Be3 {[%clk 0:02:45]}  c6 {[%clk 0:02:41]} 13. Qd2 {[%clk 0:02:38]}  Qc7 {[%clk 0:02:38]} 14. O-O {[%clk 0:02:36]}  c5 {[%clk 0:02:30]} 15. a4 {[%clk 0:02:18]}  Bg7 {[%clk 0:02:20]} 16. Nb5 {[%clk 0:02:15]}  Qb8 {[%clk 0:02:18]} 17. f4 {[%clk 0:02:02]}  O-O {[%clk 0:02:12]} 18. f5 {[%clk 0:02:02]}  gxf5 {[%clk 0:02:07]} 19. Bh6 {[%clk 0:02:01]}  fxe4 {[%clk 0:02:02]} 20. Bxg7 {[%clk 0:02:00]}  Kxg7 {[%clk 0:02:03]} 21. Bxe4 {[%clk 0:01:57]}  f5 {[%clk 0:02:02]} 22. Bf3 {[%clk 0:01:57]}  Be8 {[%clk 0:01:56]} 23. Kh2 {[%clk 0:01:43]}  Qd8 {[%clk 0:01:53]} 24. Ng1 {[%clk 0:01:42]}  Ng6 {[%clk 0:01:38]} 25. Bxh5 {[%clk 0:01:38]}  Nf6 {[%clk 0:01:37]} 26. Bxg6 {[%clk 0:01:35]}  Bxg6 {[%clk 0:01:32]} 27. Nh3 {[%clk 0:01:28]}  Ng4+ {[%clk 0:01:28]} 28. Kg1 {[%clk 0:01:20]}  Qf6 {[%clk 0:01:13]} 29. Qg5 {[%clk 0:01:14]}  Qxg5 {[%clk 0:00:56]} 30. Nxg5 {[%clk 0:01:14]}  Rad8 {[%clk 0:00:56]} 31. Ne6+ {[%clk 0:01:09]}  Kg8 {[%clk 0:00:56]} 32. Nxf8 {[%clk 0:01:07]}  Kxf8 {[%clk 0:00:56]} 33. Nc7 {[%clk 0:01:05]}  Ke7 {[%clk 0:00:53]} 34. Ne6 {[%clk 0:01:04]}  Rg8 {[%clk 0:00:51]} 35. Ra3 {[%clk 0:01:03]}  b6 {[%clk 0:00:35]} 36. Rb3 {[%clk 0:01:01]}  Rb8 {[%clk 0:00:35]} 37. h5 {[%clk 0:00:55]}  Bf7 {[%clk 0:00:28]} 38. Rxf5 {[%clk 0:00:54]}  Bxe6 {[%clk 0:00:29]} 39. dxe6 {[%clk 0:00:54]}  Kxe6 {[%clk 0:00:29]} 40. Rg5 {[%clk 0:00:54]}  Nf6 {[%clk 0:00:29]} 41. Rg6 {[%clk 0:00:51]}  Ke7 {[%clk 0:00:29]} 42. g4 {[%clk 0:00:50]}  e4 {[%clk 0:00:26]} 43. Kf2 {[%clk 0:00:49]}  d5 {[%clk 0:00:26]} 44. cxd5 {[%clk 0:00:49]}  Nxd5 {[%clk 0:00:26]} 45. h6 {[%clk 0:00:43]}  Rf8+ {[%clk 0:00:22]} 46. Kg2 {[%clk 0:00:40]}  Nf4+ {[%clk 0:00:22]} 47. Kg3 {[%clk 0:00:39]}  Nxg6 {[%clk 0:00:23]} 48. g5 {[%clk 0:00:38]}  c4 {[%clk 0:00:21]} 49. Rxb6 {[%clk 0:00:37]}  e3 {[%clk 0:00:19]} 50. Rb7+ {[%clk 0:00:32]}  Ke6 {[%clk 0:00:18]} 51. Rb6+ {[%clk 0:00:29]}  Kf5 {[%clk 0:00:14]} 52. h7 {[%clk 0:00:27]}  Kxg5 {[%clk 0:00:12]} 53. Re6 {[%clk 0:00:26]}  Rh8 {[%clk 0:00:10]} 54. Rxe3 {[%clk 0:00:24]}  Rxh7 {[%clk 0:00:11]} 55. Re4 {[%clk 0:00:25]}  Rh4 {[%clk 0:00:09]} 56. Re8 {[%clk 0:00:23]}  Rg4+ {[%clk 0:00:08]} 57. Kf3 {[%clk 0:00:22]}  Rf4+ {[%clk 0:00:09]} 58. Ke3 {[%clk 0:00:22]}  Rf1 {[%clk 0:00:08]} 59. Kd4 {[%clk 0:00:20]}  Rf4+ {[%clk 0:00:07]} 60. Kc3 {[%clk 0:00:20]}  Kf6 {[%clk 0:00:07]} 61. Rc8 {[%clk 0:00:20]}  Ne5 {[%clk 0:00:08]} 62. Rc5 {[%clk 0:00:19]}  Ke6 {[%clk 0:00:07]} 63. Rxa5 {[%clk 0:00:19]}  Rf3+ {[%clk 0:00:07]} 64. Kc2 {[%clk 0:00:19]}  Kd6 {[%clk 0:00:05]} 65. Rb5 {[%clk 0:00:17]}  Nc6 {[%clk 0:00:05]} 66. a5 {[%clk 0:00:16]}  Nd4+ {[%clk 0:00:05]} 67. Kb1 {[%clk 0:00:15]}  Nxb5 {[%clk 0:00:06]} 0-1


[Site "https://www.chess.com"]

[Event "Titled Tuesday Blitz November 22 Early 2022"]
[White "Kirillov, Dmitry"]
[Black "Bon, Michael"]
[WhiteFideId "34180572"]
[BlackFideId "620696"]
[WhiteElo "2095"]
[BlackElo "2351"]
[Result "1/2-1/2"]
[Round "07"]
[TimeControl "180+1"]
[Date "2022.11.23"]
[WhiteClock "0:00:06"]
[BlackClock "0:00:02"]

1. e4 {[%clk 0:03:00]}  c5 {[%clk 0:02:58]} 2. Nc3 {[%clk 0:03:00]}  Nc6 {[%clk 0:02:57]} 3. f4 {[%clk 0:03:01]}  e6 {[%clk 0:02:55]} 4. Nf3 {[%clk 0:02:55]}  d5 {[%clk 0:02:54]} 5. exd5 {[%clk 0:02:56]}  exd5 {[%clk 0:02:54]} 6. d4 {[%clk 0:02:57]}  Nf6 {[%clk 0:02:42]} 7. Bb5 {[%clk 0:02:55]}  Be7 {[%clk 0:02:02]} 8. O-O {[%clk 0:02:44]}  O-O {[%clk 0:02:01]} 9. Kh1 {[%clk 0:02:41]}  a6 {[%clk 0:01:57]} 10. Bxc6 {[%clk 0:02:40]}  bxc6 {[%clk 0:01:57]} 11. Ne5 {[%clk 0:02:35]}  Qc7 {[%clk 0:01:57]} 12. Ne2 {[%clk 0:01:28]}  cxd4 {[%clk 0:01:51]} 13. Nxd4 {[%clk 0:01:26]}  c5 {[%clk 0:01:50]} 14. Ndf3 {[%clk 0:01:25]}  Bb7 {[%clk 0:01:48]} 15. c3 {[%clk 0:01:25]}  Rab8 {[%clk 0:01:41]} 16. Be3 {[%clk 0:01:22]}  Ne4 {[%clk 0:01:27]} 17. Nd2 {[%clk 0:01:14]}  Nd6 {[%clk 0:01:19]} 18. Qg4 {[%clk 0:01:02]}  Rfe8 {[%clk 0:01:06]} 19. Rae1 {[%clk 0:00:58]}  Bf8 {[%clk 0:01:02]} 20. Bf2 {[%clk 0:00:30]}  Bc8 {[%clk 0:01:00]} 21. Qf3 {[%clk 0:00:26]}  Rxb2 {[%clk 0:00:55]} 22. Nb3 {[%clk 0:00:22]}  Ne4 {[%clk 0:00:43]} 23. c4 {[%clk 0:00:10]}  Rxf2 {[%clk 0:00:27]} 24. Rxf2 {[%clk 0:00:11]}  Nxf2+ {[%clk 0:00:27]} 25. Qxf2 {[%clk 0:00:11]}  dxc4 {[%clk 0:00:23]} 26. Nd2 {[%clk 0:00:05]}  c3 {[%clk 0:00:21]} 27. Nb3 {[%clk 0:00:03]}  c4 {[%clk 0:00:17]} 28. Nc1 {[%clk 0:00:02]}  Bc5 {[%clk 0:00:14]} 29. Qf1 {[%clk 0:00:02]}  Be6 {[%clk 0:00:13]} 30. Nf3 {[%clk 0:00:02]}  Qxf4 {[%clk 0:00:08]} 31. Ne2 {[%clk 0:00:01]}  Qe3 {[%clk 0:00:07]} 32. Nc1 {[%clk 0:00:02]}  Qf4 {[%clk 0:00:07]} 33. Ne2 {[%clk 0:00:02]}  Qe3 {[%clk 0:00:07]} 34. Nc1 {[%clk 0:00:03]}  Qf2 {[%clk 0:00:08]} 35. Qxf2 {[%clk 0:00:02]}  Bxf2 {[%clk 0:00:09]} 36. Re2 {[%clk 0:00:03]}  Bc5 {[%clk 0:00:09]} 37. g3 {[%clk 0:00:03]}  Rd8 {[%clk 0:00:09]} 38. Kg2 {[%clk 0:00:03]}  Rd1 {[%clk 0:00:10]} 39. Rc2 {[%clk 0:00:03]}  Bf5 {[%clk 0:00:09]} 40. Rxc3 {[%clk 0:00:04]}  Be4 {[%clk 0:00:06]} 41. g4 {[%clk 0:00:03]}  Bf8 {[%clk 0:00:05]} 42. Kg3 {[%clk 0:00:03]}  Rf1 {[%clk 0:00:03]} 43. Rxc4 {[%clk 0:00:03]}  Bxf3 {[%clk 0:00:02]} 44. Rf4 {[%clk 0:00:02]}  Bd6 {[%clk 0:00:01]} 45. Kh4 {[%clk 0:00:02]}  Bxf4 {[%clk 0:00:02]} 46. g5 {[%clk 0:00:03]}  Rxc1 {[%clk 0:00:02]} 47. Kh3 {[%clk 0:00:04]}  Rc2 {[%clk 0:00:03]} 48. Kh4 {[%clk 0:00:04]}  Rxa2 {[%clk 0:00:04]} 49. g6 {[%clk 0:00:05]}  Ra3 {[%clk 0:00:04]} 50. gxh7+ {[%clk 0:00:05]}  Kxh7 {[%clk 0:00:02]} 51. h3 {[%clk 0:00:06]}  Ra2 {[%clk 0:00:02]} 1/2-1/2


[Site "https://www.chess.com"]